Cogmind - Beta 15 @@@ ROGUE MODE // 2025.09.10 @ 17:49:57 Player: The Erv Meister Result: Destroyed by D-53 Grenadier with Mini Grenade Launcher Performance ------------- Evolutions (0) 0 Regions Visited (4) 800 Robots Destroyed (6) 30 Value Destroyed (183) 183 Prototype IDs (23) 460 Alien Tech Used (0) 0 Bonus (300) 300 TOTAL SCORE: 1773 Bonus ------- Aligned with FarCom 300 Cogmind --------- Core Integrity 0/250 Matter 300/300 Energy 100/100 System Corruption 0% Temperature Cool (0) Movement Treading (320) Ox2 Location -9/Mines Parts ------- > --- POWER (1) -------- (None) > --- PROPULSION (2) --- Light Treads > --- UTILITY (2) ------ High-capacity Storage Unit Sensor Array > --- WEAPON (2) ------- (None) > --- INVENTORY (20) --- Reinforced Deuterium Engine Fission Core Flying Fortress v7 Medium Storage Unit Large Storage Unit Large Storage Unit High-capacity Battery (250) Large Matter Pod (150) Structural Scanner Terrain Scan Processor Supersonic Drone Bay (1/1) Field Lobotomy Kit (5) Mining Laser Mining Laser Katana Peak State ------------ > --- POWER ------------ Ion Engine > --- PROPULSION ------- Light Treads Light Treads > --- UTILITY ---------- High-capacity Storage Unit Sensor Array > --- WEAPON ----------- Medium Laser Assault Rifle > --- INVENTORY -------- Reinforced Deuterium Engine Fission Core Flying Fortress v7 Medium Storage Unit Large Storage Unit Large Storage Unit High-capacity Battery Large Matter Pod Structural Scanner Terrain Scan Processor Supersonic Drone Bay Field Lobotomy Kit Mining Laser Mining Laser Katana [Rating: 14] Favorites ----------- Power Ion Engine Engine Ion Engine Propulsion Light Treads Treads Light Treads Utility Sensor Array Device Sensor Array Storage High-capacity Storage Unit Weapon Assault Rifle Energy Gun Medium Laser Ballistic Gun Assault Rifle Special Weapon Mining Laser Build | -11 -10 -10 -10 -9 ------- Run | Yrd Mat Min Exi Min Slots Evolved . | . . . . . Power . | . . . . . Propulsion . | . . . . . Utility . | . . . . . Weapon . | . . . . . Parts Attached 12 | 6 3 1 2 . Power 1 | 1 . . . . Engine 1 | 1 . . . . Core . | . . . . . Reactor . | . . . . . Propulsion 2 | 2 . . . . Treads 2 | 2 . . . . Leg . | . . . . . Wheel . | . . . . . Hover . | . . . . . Flight . | . . . . . Utility 6 | 1 2 1 2 . Device 3 | . 2 1 . . Storage 3 | 1 . . 2 . Processor . | . . . . . Hackware . | . . . . . Protection . | . . . . . Artifact . | . . . . . Weapon 3 | 2 1 . . . Energy Gun 1 | 1 . . . . Energy Cannon . | . . . . . Ballistic Gun 1 | 1 . . . . Ballistic Cannon . | . . . . . Launcher . | . . . . . Special Weapon 1 | . 1 . . . Impact Weapon . | . . . . . Slashing Weapon . | . . . . . Piercing Weapon . | . . . . . Special Melee Weapon . | . . . . . Unidentified Prototypes . | . . . . . Parts Lost 4 | . . . . 4 Power 1 | . . . . 1 Propulsion 1 | . . . . 1 Utility . | . . . . . Weapon 2 | . . . . 2 Highest Loss Streak 4 | . . . . 4 To Critical Strikes . | . . . . . Average Backups 10 | 2 5 8 9 14 Power 1 | . 1 1 1 2 Propulsion . | . . . . 1 Utility 5 | . 2 5 5 8 Weapon 2 | . 1 2 2 2 Tool/Special . | . . . . . Unused Backups 17 | . 2 . 3 12 Power 4 | . 1 . 1 2 Propulsion 1 | . . . . 1 Utility 8 | . . . 2 6 Weapon 3 | . 1 . . 2 Tool/Special 1 | . . . . 1 Average Slot Usage (%) 99 | . 94 100 100 99 Engine 13 | . 14 14 14 13 Treads 28 | . 28 28 28 28 Device 13 | . 8 14 14 14 Storage 14 | . 14 14 14 14 Energy Gun 13 | . 13 14 14 13 Ballistic Gun 14 | . 14 14 14 14 Peak Build Rating 14 | 6 7 7 13 14 Average Rating 9 | 2 6 7 8 13 On Entrance 6 | . 6 7 7 13 Naked Turns . | . . . . . Heaviest Build 50 | 14 15 15 50 50 Greatest Support 40 | 40 40 40 40 40 Greatest Overweight (x) 2 | 1 . . 1 2 Average Overweight (x) . | . . . . 1 Largest Inventory Capacity 20 | 8 8 8 20 20 Average Capacity 14 | 6 8 8 13 20 Most Carried 18 | 5 8 8 17 18 Average Carried 11 | 2 5 8 10 17 Final Capacity 20 | 8 8 8 20 20 Final Carried 18 | 2 8 8 17 18 Class Distribution -------------------- 70% | Mutant 29% | Skirmisher Dominant Class ---------------- Mutant | -10/Materials Mutant | -10/Mines Mutant | -10/Exiles Skirmisher | -9/Mines Resources | -11 -10 -10 -10 -9 ----------- Run | Yrd Mat Min Exi Min Matter Collected 459 | 193 134 . 44 88 Remotely . | . . . . . Salvage Created 229 | . 134 . . 95 Parts 13 | . 10 . . 3 Haulers Intercepted . | . . . . . Recyclers Shooed . | . . . . . Parts Field Recycled . | . . . . . Retrieved Matter . | . . . . . Parts Self-Destructed . | . . . . . Prevented . | . . . . . Kills | -11 -10 -10 -10 -9 ------- Run | Yrd Mat Min Exi Min Combat Hostiles Destroyed 4 | . 2 . . 2 Guns 4 | . 2 . . 2 Classes Destroyed 4 | . 3 . . 1 Builder 1 | . 1 . . . Watcher 1 | . 1 . . . Grunt 3 | . 2 . . 1 Duelist 1 | . . . . 1 Best Kill Streak 2 | . 1 . . 2 Combat Bots Only 2 | . 1 . . 2 Max Kills in Single Turn 1 | . 1 . . 1 Gunslinging . | . . . . . Exploded . | . . . . . Melee . | . . . . . Uniques/NPCs Destroyed . | . . . . . Combat | -11 -10 -10 -10 -9 -------- Run | Yrd Mat Min Exi Min Hostile Shots Fired 33 | . 8 . . 25 Missed 6 | . 1 . . 5 Hits 27 | . 7 . . 20 Melee 1 | . . . . 1 Projectile 26 | . 7 . . 19 AOE 14 | . . . . 14 Damage Taken 759 | . 94 . . 665 Core 256 | . 32 . . 224 Absorbed by Shields . | . . . . . Core Remaining (%) 100 | 100 . . . . Volleys Fired 27 | . 17 . . 10 Largest 2 | . 2 . . 2 Hottest 70 | . 70 . . 70 Shots Fired 54 | . 34 . . 20 Gun 54 | . 34 . . 20 Cannon . | . . . . . Launcher . | . . . . . Special . | . . . . . Kinetic 27 | . 17 . . 10 Thermal 27 | . 17 . . 10 Explosive . | . . . . . Electromagnetic . | . . . . . Robot Hit Streak 8 | . 5 . . 8 Robot Miss Streak 5 | . 5 . . 4 Penetration Max . | . . . . . Secondary Targets 1 | . . . . 1 Max Gunslinging Chain 1 | . . . . 1 Shots Hit Robots 31 | . 18 . . 13 Core Hits 13 | . 7 . . 6 Critical Kills . | . . . . . Critical Parts Destroyed . | . . . . . Critical Strikes 3 | . 2 . . 1 Burn 3 | . 2 . . 1 Melee Attacks . | . . . . . Impact . | . . . . . Slashing . | . . . . . Piercing . | . . . . . Sneak Attacks . | . . . . . Combat Hostiles . | . . . . . Follow-up Attacks . | . . . . . Damage Inflicted 393 | . 225 . . 168 Guns 393 | . 225 . . 168 Cannons . | . . . . . Explosions . | . . . . . Melee . | . . . . . Ramming . | . . . . . Kinetic 209 | . 114 . . 95 Thermal 184 | . 111 . . 73 Explosive . | . . . . . Electromagnetic . | . . . . . Impact . | . . . . . Slashing . | . . . . . Piercing . | . . . . . Highest Corruption . | . . . . . Average Corruption . | . . . . . Corruption Purged . | . . . . . Corruption Blocked . | . . . . . Overload Shots . | . . . . . Overflow Damage . | . . . . . Projectiles . | . . . . . Explosions . | . . . . . Melee . | . . . . . Knockbacks . | . . . . . Impact . | . . . . . Kinetic . | . . . . . Secondary . | . . . . . Self-Inflicted Damage . | . . . . . Shots . | . . . . . Rammed . | . . . . . Targets Rammed . | . . . . . Kicked . | . . . . . Crushed . | . . . . . Highest Temperature 108 | . 72 . . 108 Average Temperature 29 | . 20 . . 46 Received Heat Transfer 99 | . 54 . . 45 Siege Activations . | . . . . . Martial Activations . | . . . . . Shielding Activations . | . . . . . Robots Disrupted . | . . . . . Combat Hostiles . | . . . . . Robots Corrupted . | . . . . . Combat Hostiles . | . . . . . Parts Fried . | . . . . . Impact Corruptions . | . . . . . Robots Melted . | . . . . . Combat Hostiles . | . . . . . Parts Melted 3 | . 2 . . 1 Heat Transferred 777 | . 481 . . 296 Parts Sabotaged . | . . . . . Parts Stolen . | . . . . . Parts Stripped . | . . . . . Power Chain Reactions . | . . . . . Alert | -11 -10 -10 -10 -9 ------- Run | Yrd Mat Min Exi Min Maximum Alert Level . | . . . . . Low Security (%) 100 | 100 100 100 . 100 Level 1 . | . . . . . Level 2 . | . . . . . Level 3 . | . . . . . Level 4 . | . . . . . Level 5 . | . . . . . High Security . | . . . . . Max Security . | . . . . . Peak Influence 45 | . 45 . . 40 Initial . | . . . . . Average 2 | . 9 . . 1 Influence Increases 127 | . 77 . . 50 Destroy 0b10 Robot/C 80 | . 40 . . 40 Destroy 0b10 Robot/NC 10 | . 10 . . . Destroy Leader 22 | . 12 . . 10 Lose Combat Pursuer 15 | . 15 . . . Influence Decreases 127 | . 77 . . 50 Time Decay 127 | . 77 . . 50 Squads Dispatched 1 | . 1 . . . Investigation 1 | . 1 . . . Extermination . | . . . . . Reinforcement . | . . . . . Assault . | . . . . . Garrison . | . . . . . Intercept . | . . . . . Searches Triggered . | . . . . . Construction Impeded . | . . . . . Haulers Reinforced . | . . . . . Active Scanning Responses . | . . . . . Cargo Convoy Interrupts . | . . . . . Stealth | -11 -10 -10 -10 -9 --------- Run | Yrd Mat Min Exi Min Distress Signals . | . . . . . Communications Jammed . | . . . . . Distress Signals . | . . . . . Times Spotted 13 | . 6 . . 7 Peak Tracking Total 4 | . 2 . . 4 Tactical Retreats 1 | . 1 . . . Traps | -11 -10 -10 -10 -9 ------- Run | Yrd Mat Min Exi Min Traps Triggered 1 | . 1 . . . Indirectly . | . . . . . Trap Hack Attempts . | . . . . . Triggered . | . . . . . Disarmed . | . . . . . Reprogrammed . | . . . . . Reused . | . . . . . Traps Extracted . | . . . . . Installed . | . . . . . Triggered . | . . . . . Machines | -11 -10 -10 -10 -9 ---------- Run | Yrd Mat Min Exi Min Machines Disabled 1 | . 1 . . . Max in Single Turn 1 | . 1 . . . Machines Repaired . | . . . . . Machines Dismantled . | . . . . . Machines Sabotaged . | . . . . . Overloaded Fab Kills . | . . . . . Hacking | -11 -10 -10 -10 -9 --------- Run | Yrd Mat Min Exi Min Machines Accessed 5 | . . . 5 . Terminals . | . . . . . Fabricators . | . . . . . Repair Stations . | . . . . . Recycling Units . | . . . . . Scanalyzers . | . . . . . Garrison Access . | . . . . . Total Hacks 50 | . . . 50 . Successful 50 | . . . 50 . Failed . | . . . . . Catastrophic . | . . . . . Database Lockouts . | . . . . . Manual 1 | . . . 1 . Terminals . | . . . . . Fabricators . | . . . . . Repair Stations . | . . . . . Recycling Units . | . . . . . Scanalyzers . | . . . . . Garrison Access . | . . . . . Terminal Hacks 50 | . . . 50 . Record 49 | . . . 49 . Proto ID Catalog 1 | . . . 1 . Fabricator Hacks . | . . . . . Repair Station Hacks . | . . . . . Recycling Unit Hacks . | . . . . . Scanalyzer . | . . . . . Garrison Access Hacks . | . . . . . Unauthorized Hacks . | . . . . . Terminals . | . . . . . Fabricators . | . . . . . Repair Stations . | . . . . . Recycling Units . | . . . . . Scanalyzers . | . . . . . Garrison Access . | . . . . . Data Cores Recovered . | . . . . . Used . | . . . . . Hacking Detections . | . . . . . Full Trace Events . | . . . . . Feedback Events . | . . . . . Feedback Blocked . | . . . . . Robot Schematics Acquired . | . . . . . Robots Built . | . . . . . Authchips . | . . . . . Time . | . . . . . Total Robot Build Rating . | . . . . . Part Schematics Acquired . | . . . . . Parts Built . | . . . . . Authchips . | . . . . . Time . | . . . . . Total Part Build Rating . | . . . . . Parts Repaired . | . . . . . Time . | . . . . . Parts Recycled . | . . . . . Recycled Matter . | . . . . . Retrieved Matter . | . . . . . Retrieved Components . | . . . . . Parts Scanalyzed . | . . . . . Part Schematics Acquired . | . . . . . Parts Damaged . | . . . . . Bothacking | -11 -10 -10 -10 -9 ------------ Run | Yrd Mat Min Exi Min Used RIF Installer . | . . . . . Robots Hacked . | . . . . . Non-combat . | . . . . . Combat . | . . . . . Robot Hacks Applied . | . . . . . Relay Couplers Released . | . . . . . Fabnet Peak Effective % . | . . . . . Robots Rewired . | . . . . . Allies Hacked . | . . . . . Hacks Repelled . | . . . . . Allies | -11 -10 -10 -10 -9 -------- Run | Yrd Mat Min Exi Min Total Allies 3 | . . . . 3 Largest Group 3 | . . . . 3 Highest-Rated Group 40 | . . . . 40 Highest-Rated Ally 16 | . . . . 16 Total Orders . | . . . . . Ally Attacks 3 | . . . . 3 Total Damage 29 | . . . . 29 Kills . | . . . . . Allies Corrupted . | . . . . . Allies Melted . | . . . . . Intel | -11 -10 -10 -10 -9 ------- Run | Yrd Mat Min Exi Min Active Infowar (turns) 4071 | . 222 520 2097 1232 Sensors 3672 | . 132 211 2097 1232 Structural 399 | . 90 309 . . Robot Analysis Total . | . . . . . Derelict Logs Recovered 2 | . . 1 . 1 Drone Launches . | . . . . . Drone Recoveries . | . . . . . Exploration | -11 -10 -10 -10 -9 ------------- Run | Yrd Mat Min Exi Min Turns Passed 4267 | 74 344 520 2097 1232 Spaces Moved 2162 | 57 174 325 1115 491 Core 36 | 36 . . . . Treads 2126 | 21 174 325 1115 491 Legs . | . . . . . Wheels . | . . . . . Hover . | . . . . . Flight . | . . . . . Fastest Speed 50 | 50 160 160 160 240 Average Speed 190 | 92 160 160 186 240 Slowest Speed 320 | 160 160 160 240 320 Overloaded Moves . | . . . . . Propulsion Burnouts . | . . . . . Robots Hopped . | . . . . . Potential Cave-ins . | . . . . . Cave-ins Triggered . | . . . . . Exploration Rate (%) 53 | 4 31 57 94 79 Regions Visited 4 Branch Regions 3 Pre-discovered Areas 1 | . . . 1 . Known Exits Taken . | . . . . . Unknown Exits Taken 4 | 1 1 1 1 . Scrap Searched 1 | . . . . 1 Spaces Dug . | . . . . . Terrain Destroyed . | . . . . . Melee . | . . . . . Projectile . | . . . . . AOE . | . . . . . Terrain Rammed . | . . . . . Walls Destroyed . | . . . . . Machines Disabled . | . . . . . Actions | -11 -10 -10 -10 -9 --------- Run | Yrd Mat Min Exi Min Total 2266 | 78 206 325 1134 523 Wait 31 | 10 . . . 21 Move 2158 | 56 173 324 1114 491 Hop . | . . . . . Pick Up 27 | 6 9 . 11 1 Fast Attach 4 | 2 1 . 1 . Attach 5 | 4 1 . . . Detach . | . . . . . Swap 5 | . 2 1 2 . Drop 9 | . 3 . 6 . Fire 27 | . 17 . . 10 Melee . | . . . . . Ram . | . . . . . Kick . | . . . . . Crush . | . . . . . Escape Stasis . | . . . . . Rewire . | . . . . . Trap . | . . . . . Miscellaneous . | . . . . . Route ------- -11/Scrapyard -10/Materials (discovered 2 exits: [*Min] / [Sub]) -10/Mines (discovered 3 exits: Mat / *Exi / [*Sub]) -10/Exiles (discovered 2 exits: [*Min x2]) -9/Mines History --------- Turn | Location | Event 9 | -11/Scrapyard | Discovered new exit (range 15) 75 | -11/Scrapyard | Entered Materials 311 | -10/Materials | Build established: Mutant 342 | -10/Materials | Discovered new exit (range 8) 344 | -10/Materials | Discovered new exit (range 10) 419 | -10/Materials | Entered Mines 438 | -10/Mines | Met a Derelict bent on vengeance 477 | -10/Mines | Discovered new exit (range 10) 599 | -10/Mines | Identified exit to Materials 928 | -10/Mines | Deemed a non-threat by the Exiles lab entrance 930 | -10/Mines | Discovered new exit (range 5) 939 | -10/Mines | Entered Exiles 992 | -10/Exiles | Discovered new exit (range 14) 1053 | -10/Exiles | Met 8R-AWN 1114 | -10/Exiles | Met EX-HEX 1237 | -10/Exiles | Met EX-BIN 1306 | -10/Exiles | Aligned with FarCom system 1308 | -10/Exiles | Given EX-Vault access code 1524 | -10/Exiles | Met EX-DEC 1541 | -10/Exiles | Learned location of Zion (-6) 1710 | -10/Exiles | Discovered new exit (range 14) 1855 | -10/Exiles | Visited The Gauntlet 2706 | -10/Exiles | Opened EX-Vault 2718 | -10/Exiles | Found Prototype Device 2722 | -10/Exiles | Identified Supersonic Drone Bay 2738 | -10/Exiles | Found Field Lobotomy Kit 2747 | -10/Exiles | Found Flying Fortress v7 2803 | -10/Exiles | Warned to stay clear of 0b10 Research branches 3036 | -10/Exiles | Stole three prototypes: Flying Fortress v7, Supersonic Drone Bay, Field Lobotomy Kit 3036 | -10/Exiles | Entered Mines 3277 | -9/Mines | Learned Materials emergency access door positions 3324 | -9/Mines | Build established: Skirmisher 3796 | -9/Mines | Assisted by bots powering up and referring to "LRC-V3" 4247 | -9/Mines | Assembled infested the area 4264 | -9/Mines | Core integrity fell below 50% 4266 | -9/Mines | Core integrity fell below 20% 4268 | -9/Mines | Destroyed by D-53 Grenadier with Mini Grenade Launcher Last Messages --------------- T-07 Excavator is excavating. U-05 Engineer builds a Wall. T-07 Excavator is excavating. ALERT: Infestation in the mines, dispatching Demolisher response squad. C-30 ARC bursts open, deploying its payload. D-53 Grenadier unfolds itself. Ion Engine destroyed. Mercenary 2a destroyed. Trooper 2b destroyed. Trooper 2a destroyed. The unstable cave ceiling collapses. Med. Laser destroyed. C-30 ARC bursts open, deploying its payload. G-47 Trooper unfolds itself. G-34 Mercenary unfolds itself. The unstable cave ceiling collapses. Assault Rifle destroyed. Lgt. Treads destroyed. K-01 Serf collects debris. Map ----- +----------------------------------------------------+ | ????????????????# # %#???## # #?????#### | | ?????????????????# ##### ###??## | | ?????????????????# ## #### "" | | ?????????????????## #?## "" | | ??????????????????## ### ##??## "" | | ????????????????##### #########???# | | ????????????????# #???# ## | | ?????????????#### #???## ## ### | | ?????????????# """ """ """ #????########## | | ?????????????# ## """ """ """ #???????????## | | ????????????????# """ """ """ #???????????# | | ????????????????# % #??????????# ## | | ????????????????# """ #?????????# #? | | ????????????????# """ #????????# #? | | ????????????????# """ #????????# #? | | ????????????????# #???????# ##? | | ????????????????############# ##??????# #??? | | ?????????????????????????# #???????# #???? | | ?????????????????????????# ## #???????## ##????# | | ???????????????????????### ## ########### #????## | | ??????????????????????## ## ## #?#### | | ?????????????????????## k ########### ## ### | | ?????????????????????# #????????# ## ## | | ????????????????????## #????????# ## ## | | ????????????????????# ##???????# # | | ????????????????????# @ ##??????## ######### | | ????????????????????# #???????# #???????? | | ????????????????????# #???????# #???????? | | ????????????????????# ##???????# #???????? | | ????????????????????# ##????????# ####????? | | ????????????????? #????????# #????? | | ????????????????##### ##????????#### #????? | | ????????????????????### ##????????????# #????? | | ??????????????????????## ###?????????????# ###### | | ???????????????????????#dd#???????????????# # | | ???????????????????????#g #???????????????###### # | | ???????????????????????#g #????????????????????# | | ???????????????????????#% ?????????????????????### | | ??????????????????????? ???????????????????????? | | ???????????????????????###???????????????????????? | | ?????????????????????????????????????????????????? | | ?????????????????????????????????????????????????? | | ?????????????????????????????????????????????????? | | ?????????????????????????????????????????????????? | | ?????????????????????????????????????????????????# | | ?????????????????????????????????????????????????# | | ?????????????????????????????????????????????????# | | ?????????????????????????????????????????????????# | | ?????????????????????????????????????????????????# | | ?????????????????????????????????????????????????? | +----------------------------------------------------+ Best States ------------- Heat Dissipation 25 Energy Generation 10 Energy Capacity 250 Matter Stores 300 Matter Capacity 300 Sight Range 16 Robot Scan Range 14 Terrain Scan Density 10 Evasion (%) 50 Recoil Reduction 2 Item Schematics ----------------- None Robot Schematics ------------------ None Fabricated ------------ Nothing Repaired ---------- Nothing Alien Tech Used ----------------- None Achievements -------------- Librarian Challenges ------------ None Game ------ Seed CarbideDecoderBeamcaster Manual? 0 Play Time 00:28:50 Cumulative 5.7 hours Start 2025.09.10 @ 17:20:07 End 2025.09.10 @ 17:49:57 Sessions 1 Manual Loads 0 Difficulty Rogue Special Mode None Game No. 8 Rogue 8 Adventurer 0 Explorer 0 Win Type - Total 0 Types 0/0/0/0/0/0/0/0/0/0 Lore% 6 Gallery% 9 Achievement% 14 Wizard Run 0 Options --------- Layout 1 ASCII 0 Keyboard 0 Movement Arrows Keybinds 0 Fullscreen 1 Font 24/Smallcaps Map View 25x17 Zoom Use 96% Tactical HUD 0 Map Filters NONE Filters NONE Steam 1 RUN: d45a5e28-e19c-4d24-a625-45474f18ae53